bitfinex/quotes_ETHUSD_20250908
["timestamp","ask_amount","ask_price","bid_price","bid_amount"]
[1757347270957,2.3099,4367.2,4367.1,5.628]
[1757347271140,2.022,4367.2,4367.1,5.628]
[1757347271344,2.3099,4367.2,4367.1,5.628]
[1757347271745,4.59969666,4367.2,4367.1,5.628]
[1757347271945,5.04849666,4367.2,4367.1,5.628]
[1757347272203,7.31640463,4367.2,4367.1,1.759]
[1757347272360,8.54640463,4367.2,4367.1,5.63]
[1757347272562,10.93300463,4367.2,4367.1,5.63]
[1757347273290,8.54640463,4367.2,4367.1,5.63]
[1757347273458,8.54640463,4367.2,4367.1,1.759]
[1757347273661,12.16300463,4367.2,4367.1,5.63]
[1757347274005,12.16300463,4367.2,4367.1,1.759]
[1757347274371,12.16300463,4367.2,4367.1,5.63]
[1757347275072,13.39300463,4367.2,4367.1,5.63]
[1757347276387,14.62300463,4367.2,4367.1,5.63]
[1757347277888,15.85300463,4367.2,4367.1,5.63]
[1757347278458,2.28995397,4366.9,4366.8,0.025]
[1757347278800,5.12523811,4366.9,4366.8,1.782]
[1757347278970,8.24853811,4366.9,4366.8,1.782]
[1757347279183,9.47853811,4366.9,4366.8,1.782]
[1757347279874,9.47853811,4366.9,4366.8,5.65]
[1757347280519,10.70853811,4366.9,4366.8,5.65]
[1757347280712,8.32193811,4366.9,4366.8,5.65]
[1757347281130,10.70853811,4366.9,4366.8,5.65]
[1757347281913,11.93853811,4366.9,4366.8,1.782]
[1757347282116,11.93853811,4366.9,4366.8,5.649]
[1757347283139,3.19640641,4366.8,4366.5,5.492]
[1757347283283,7.01730086,4366.8,4366.7,1.759]
[1757347283615,7.74570086,4366.8,4366.7,1.759]
[1757347283813,3.08211129,4366.6,4366.5,5.492]
[1757347283980,2.59571129,4366.6,4366.5,7.249]
[1757347284180,3.38771129,4366.6,4366.5,11.114]
[1757347284382,5.46473632,4366.6,4366.5,11.114]
[1757347284582,3.72430086,4366.8,4366.5,11.114]
[1757347284583,3.72430086,4366.8,4366.5,11.4006]
[1757347284889,4.92,4366.9,4366.6,2.8849]
[1757347285089,4.92,4366.9,4366.8,0.2866]
[1757347285424,4.92,4366.9,4366.8,3.1715]
[1757347285998,7.20995397,4366.9,4366.8,3.1715]
[1757347286329,9.23195397,4366.9,4366.8,2.7307]
[1757347286620,9.23195397,4366.9,4366.8,3.1715]
[1757347287018,9.23195397,4366.9,4366.8,0.2866]
[1757347287218,3.08211129,4366.6,4366.5,10.249]
[1757347287422,0.792,4366.6,4366.5,17.2865]
[1757347287630,1.23,4366.6,4366.5,17.2865]
[1757347287831,2.022,4366.6,4366.5,17.2865]
[1757347288233,1.23,4366.6,4366.5,17.2865]
[1757347288429,1.23,4366.6,4366.5,19.57666374]
[1757347288667,1.23,4366.6,4366.5,49.57666374]
[1757347289133,2.46,4366.6,4366.5,49.57666374]
[1757347289495,2.46,4366.6,4366.5,49.69106374]
[1757347290515,3.69,4366.6,4366.5,49.69106374]
[1757347292033,4.92,4366.6,4366.5,49.69106374]
[1757347292617,4.92,4366.6,4366.5,19.69106374]
[1757347293039,4.92,4366.6,4366.5,49.69106374]
[1757347293213,6.15,4366.6,4366.5,49.69106374]
[1757347293716,6.15,4366.6,4366.5,15.71066374]
[1757347294046,6.15,4366.6,4366.5,19.57566374]
[1757347294508,7.38,4366.6,4366.5,19.57566374]
[1757347294701,7.38,4366.6,4366.5,13.8457]
[1757347294904,7.38,4366.6,4366.5,11.115]
[1757347295129,7.38,4366.6,4366.5,10.249]
[1757347295334,7.38,4366.6,4366.5,14.115]
[1757347295335,7.6856,4366.6,4366.5,14.115]
[1757347295729,8.4776,4366.6,4366.5,14.115]
[1757347295925,9.7076,4366.6,4366.5,11.115]
[1757347296132,9.7076,4366.6,4366.5,14.115]
[1757347296328,9.402,4366.6,4366.5,16.8457]
[1757347296528,9.402,4366.6,4366.5,17.2865]
[1757347296928,8.61,4366.6,4366.5,17.2865]
[1757347297345,9.84,4366.6,4366.5,17.2865]
[1757347297648,9.84,4366.6,4366.5,14.4016]
[1757347298227,9.84,4366.6,4366.5,16.8457]
[1757347298422,9.84,4366.6,4366.5,17.2865]
[1757347298682,9.84,4366.6,4366.5,19.57666374]
[1757347298850,11.07,4366.6,4366.5,19.57666374]
[1757347299964,11.07,4366.6,4366.5,17.2865]
[1757347300313,12.3,4366.6,4366.5,17.2865]
[1757347301164,12.3,4366.6,4366.5,19.57666374]
[1757347301665,13.8356,4366.6,4366.5,10.249]
[1757347301868,15.36707778,4366.6,4366.5,10.249]
[1757347302034,13.53,4366.6,4366.5,14.113]
[1757347302433,13.8356,4366.6,4366.5,14.113]
[1757347302745,14.6276,4366.6,4366.5,10.249]
[1757347303059,16.2981,4366.6,4366.5,14.114]
[1757347303270,15.8576,4366.6,4366.5,14.114]
[1757347303432,15.8576,4366.6,4366.5,10.249]
[1757347303746,15.8576,4366.6,4366.5,14.113]
[1757347304326,17.0876,4366.6,4366.5,14.113]
[1757347305017,24.08582912,4366.6,4366.5,7.249]
[1757347305518,24.08582912,4366.6,4366.5,11.113]
[1757347305721,25.31582912,4366.6,4366.5,11.113]
[1757347306753,22.14702912,4366.6,4366.5,11.113]
[1757347306955,20.30211129,4366.6,4366.5,11.113]
[1757347307168,21.53211129,4366.6,4366.5,11.113]
[1757347307487,19.242,4366.6,4366.5,16.8437]
[1757347307686,21.83771129,4366.6,4366.5,14.113]
[1757347307845,21.83771129,4366.6,4366.5,11.113]
[1757347308168,24.54611926,4366.6,4366.5,11.113]
[1757347308341,23.04550797,4366.6,4366.5,11.113]
[1757347308540,25.33561926,4366.6,4366.5,11.113]
[1757347308889,25.77611926,4366.6,4366.5,7.249]
[1757347309042,28.19881926,4366.6,4366.5,11.114]
[1757347309237,28.19881926,4366.6,4366.5,7.249]
[1757347309461,28.19881926,4366.6,4366.5,11.114]
[1757347309772,28.19881926,4366.6,4366.5,5.624]
[1757347309979,3.19656374,4366.5,4366.1,0.042]
[1757347310282,3.19656374,4366.5,4365.8,1e-08]
[1757347310283,0.1144,4366.1,4365.8,1e-08]
[1757347310590,1.0976,4365.9,4365.8,1e-08]
[1757347310769,3.38807848,4365.9,4365.8,1e-08]
[1757347310951,6.25127848,4365.9,4365.8,1e-08]
[1757347311151,6.25127848,4365.9,4365.8,0.74600001]
[1757347311355,8.33544893,4365.9,4365.8,0.74600001]
[1757347312794,9.56544893,4365.9,4365.8,0.74600001]
[1757347313993,9.56544893,4365.9,4365.2,0.002]
[1757347313994,0.792,4365.4,4365.2,0.002]
[1757347314294,3.08274082,4365.4,4365.3,1.593]
[1757347314491,3.91808161,4365.4,4365.3,1.593]
[1757347314696,4.38908161,4365.4,4365.3,1.593]
[1757347314990,6.75148161,4365.4,4365.3,1.593]
[1757347315361,5.61908161,4365.4,4365.3,1.593]
[1757347316777,6.84908161,4365.4,4365.3,1.593]
[1757347316977,6.37808161,4365.4,4365.3,1.593]
[1757347318150,7.60808161,4365.4,4365.3,1.593]
[1757347318860,7.60808161,4365.4,4365.3,3.351]
[1757347319887,9.30908161,4365.4,4365.3,3.351]
[1757347320249,9.30908161,4365.4,4365.3,3.6549]
[1757347320250,8.54008161,4365.4,4365.3,3.6549]
[1757347320584,7.21074082,4365.4,4365.3,6.4562]
[1757347320946,8.00274082,4365.4,4365.3,6.4562]
[1757347321149,9.23274082,4365.4,4365.3,6.4562]
[1757347321780,6.15,4365.4,4365.3,6.4562]
[1757347322085,6.942,4365.4,4365.3,9.4562]
[1757347322283,6.2644,4365.4,4365.3,11.7469933]
[1757347322462,7.4944,4365.4,4365.3,9.4562]
[1757347322663,7.4944,4365.4,4365.3,11.7469933]
[1757347323212,7.38,4365.4,4365.3,41.8613933]
[1757347323742,8.61,4365.4,4365.3,42.0903933]
[1757347323955,8.61,4365.4,4365.3,41.8613933]
[1757347324759,8.61,4365.4,4365.3,9.4562]
[1757347324965,8.61,4365.4,4365.3,14.0209933]
[1757347325194,9.84,4365.4,4365.3,14.0209933]
[1757347325583,9.84,4365.4,4365.3,44.0209933]
[1757347326576,11.07,4365.4,4365.3,44.0209933]
[1757347327985,12.3,4365.4,4365.3,44.0209933]
[1757347329317,13.53,4365.4,4365.3,44.0209933]
[1757347330316,3.69,4365.9,4365.3,41.7302]
[1757347330518,20.91,4366.6,4366.1,2.2903687]
[1757347330700,20.91,4366.6,4366.3,3.0]
[1757347330903,20.91,4366.6,4366.5,5.59406374]
[1757347331108,20.91,4366.6,4366.5,8.50976374]
[1757347332133,22.14,4366.6,4366.5,8.50976374]
[1757347333607,23.37,4366.6,4366.5,8.50976374]
[1757347334030,23.37,4366.6,4366.5,3.0]
[1757347334031,23.668,4366.6,4366.5,3.0]
[1757347334335,25.63790797,4366.6,4366.5,6.865]
[1757347334915,26.86790797,4366.6,4366.5,6.865]
[1757347335317,26.86790797,4366.6,4366.5,7.1689]
[1757347335927,26.86890797,4366.6,4366.5,7.1689]
[1757347336328,25.831,4366.6,4366.5,7.1689]
[1757347336547,25.831,4366.6,4366.5,6.865]
[1757347337328,25.831,4366.6,4366.5,7.1689]
[1757347337544,25.831,4366.6,4366.5,6.865]
[1757347337752,27.061,4366.6,4366.5,6.865]
[1757347338053,29.62690797,4366.6,4366.5,6.865]
[1757347338256,30.09790797,4366.6,4366.5,6.865]
[1757347339042,29.62690797,4366.6,4366.5,6.865]
[1757347339245,30.85690797,4366.6,4366.5,6.865]
[1757347339868,0.792,4366.5,4366.4,5.493]
[1757347340165,8.48147171,4366.5,4366.4,12.355]
[1757347340454,6.11907171,4366.5,4366.4,12.355]
[1757347340621,7.34907171,4366.5,4366.4,12.355]
[1757347340816,7.34907171,4366.5,4366.4,8.493]
[1757347341022,7.34907171,4366.5,4366.4,12.355]
[1757347341471,5.05890797,4366.5,4366.4,12.355]
[1757347341640,7.34907171,4366.5,4366.4,8.493]
[1757347341841,9.71147171,4366.5,4366.4,5.493]
[1757347342041,9.71147171,4366.5,4366.2,1.757]
[1757347342042,3.08226864,4366.3,4366.2,1.757]
[1757347342243,3.08226864,4366.3,4366.2,5.618]
[1757347343375,3.08226864,4366.3,4366.2,1.757]
[1757347343376,4.31226864,4366.3,4366.2,1.757]
[1757347343674,4.31226864,4366.3,4366.2,5.617]
[1757347344677,5.54226864,4366.3,4366.2,5.617]
[1757347344844,7.78037661,4366.3,4366.2,5.617]
[1757347346080,9.01037661,4366.3,4366.2,5.617]
[1757347346376,3.69,4366.3,4366.2,5.617]
[1757347346576,3.69,4366.3,4366.2,8.617]
[1757347347480,4.92,4366.3,4366.2,8.617]
[1757347347776,4.92,4366.3,4366.2,4.757]
[1757347347976,5.712,4366.3,4366.2,8.618]
[1757347348597,8.00226864,4366.3,4366.2,4.757]
[1757347348953,11.50017661,4366.3,4366.2,1.757]
[1757347349083,11.50017661,4366.3,4366.2,5.618]
[1757347350099,12.73017661,4366.3,4366.2,1.757]
[1757347350392,12.73017661,4366.3,4366.2,5.622]
[1757347351162,11.93817661,4366.3,4366.2,5.622]
[1757347351585,13.16817661,4366.3,4366.2,5.622]
[1757347351907,13.96017661,4366.3,4366.2,5.622]
[1757347352404,13.96017661,4366.3,4366.2,1.757]
[1757347352559,13.96017661,4366.3,4366.2,5.623]
[1757347352962,15.19017661,4366.3,4366.2,5.623]
[1757347354403,16.42017661,4366.3,4366.2,5.623]
[1757347355368,16.42017661,4366.3,4366.2,1.757]
[1757347355588,16.42017661,4366.3,4366.2,5.623]
[1757347355790,17.65017661,4366.3,4366.2,5.623]
[1757347355986,17.65017661,4366.3,4366.2,1.757]
[1757347356268,17.48630393,4366.3,4366.2,5.623]
[1757347356681,17.48630393,4366.3,4366.2,1.757]
[1757347356885,3.08247848,4365.9,4365.8,0.002]
[1757347357086,3.08247848,4365.9,4365.8,5.624]
[1757347358632,4.31247848,4365.9,4365.8,5.624]
[1757347360010,5.54247848,4365.9,4365.8,5.624]
[1757347361716,6.77247848,4365.9,4365.8,5.624]
[1757347362023,7.90113188,4365.9,4365.8,5.624]
[1757347363014,9.13113188,4365.9,4365.8,5.624]
[1757347364543,6.15,4365.9,4365.8,5.624]
[1757347365134,6.942,4365.9,4365.8,5.624]
[1757347365839,8.172,4365.9,4365.8,5.624]
[1757347366036,7.38,4365.9,4365.8,5.624]
[1757347366341,7.4944,4365.9,4365.8,5.624]
[1757347366689,7.4944,4365.9,4365.8,8.624]
[1757347367290,8.7244,4365.9,4365.8,8.624]
[1757347368738,9.9544,4365.9,4365.8,8.624]
[1757347370352,11.1844,4365.9,4365.8,8.624]
[1757347371727,12.4144,4365.9,4365.8,8.624]
[1757347372228,12.4144,4365.9,4365.8,10.91453094]
[1757347372407,12.4144,4365.9,4365.8,8.624]
[1757347373238,13.6444,4365.9,4365.8,8.624]
[1757347374531,14.8744,4365.9,4365.8,8.624]
[1757347376041,16.1044,4365.9,4365.8,8.624]
[1757347377339,17.3344,4365.9,4365.8,8.624]
[1757347378952,18.5644,4365.9,4365.8,8.624]
[1757347379654,23.38891848,4365.9,4365.8,1.759]
[1757347379950,23.38891848,4365.9,4365.8,5.615]
[1757347380352,24.61891848,4365.9,4365.8,5.615]
[1757347381955,25.84891848,4365.9,4365.8,5.615]
[1757347383211,27.07891848,4365.9,4365.8,5.615]
[1757347384761,28.30891848,4365.9,4365.8,5.615]
[1757347386258,29.53891848,4365.9,4365.8,5.615]
[1757347387462,27.68247848,4365.9,4365.8,5.615]
[1757347387633,28.91247848,4365.9,4365.8,5.615]
[1757347388033,28.91247848,4365.9,4365.8,1.759]
[1757347388242,28.91247848,4365.9,4365.8,5.616]
[1757347389062,30.14247848,4365.9,4365.8,5.616]
[1757347389469,32.41038645,4365.9,4365.8,5.616]
[1757347390667,33.64038645,4365.9,4365.8,5.616]
[1757347391968,34.87038645,4365.9,4365.8,5.616]
[1757347393232,36.10038645,4365.9,4365.8,5.616]
[1757347394576,37.33038645,4365.9,4365.8,5.616]
[1757347395273,37.33038645,4365.9,4365.8,1.759]
[1757347395433,37.33038645,4365.9,4365.7,5.492]
[1757347395434,3.19693094,4365.8,4365.7,5.492]
[1757347395636,5.46483891,4365.8,4365.7,7.25]
[1757347395934,3.08268835,4365.5,4365.4,0.002]
[1757347396139,3.08268835,4365.5,4365.4,1.76]
[1757347396333,3.08274082,4365.4,4365.3,0.002]
[1757347396590,3.08274082,4365.4,4365.1,1e-08]
[1757347396591,3.08284578,4365.2,4365.1,1e-08]
[1757347396789,3.0831082,4364.7,4362.4,0.002]
[1757347397091,3.0831082,4364.7,4364.6,1.776]
[1757347397285,3.0831082,4364.7,4364.2,0.002]
[1757347397286,3.08321319,4364.5,4364.2,0.002]
[1757347398389,3.08352822,4363.9,4362.4,0.231]
[1757347398561,3.39188104,4363.9,4363.8,0.207]
[1757347398772,3.39188104,4363.9,4363.8,1.965]
[1757347398966,4.62188104,4363.9,4363.8,1.965]
[1757347400612,2.46,4363.9,4363.8,1.965]
[1757347400766,2.5744,4363.9,4363.8,1.965]
[1757347400958,2.5744,4363.9,4363.8,37.25658073]
[1757347400959,2.46,4363.9,4363.8,37.25658073]
[1757347401760,3.69,4363.9,4363.8,37.25658073]
[1757347402187,3.69,4363.9,4363.8,37.37098073]
[1757347402670,3.69,4363.9,4363.8,35.0794]
[1757347402870,3.69,4363.9,4363.8,34.965]
[1757347403072,3.69,4363.9,4363.8,37.25658073]
[1757347403267,4.92,4363.9,4363.8,37.25658073]
[1757347403470,4.92,4363.9,4363.8,34.965]
[1757347403668,4.92,4363.9,4363.8,38.642]
[1757347403895,4.92,4363.9,4363.8,8.642]
[1757347404468,6.15,4363.9,4363.8,8.642]
[1757347405862,7.38,4363.9,4363.8,8.642]
[1757347407194,8.61,4363.9,4363.8,8.642]
[1757347408298,8.61,4363.9,4363.8,10.93358073]
[1757347408702,9.84,4363.9,4363.8,10.93358073]
[1757347410276,11.07,4363.9,4363.8,10.93358073]
[1757347411613,12.3,4363.9,4363.8,10.93358073]
[1757347412209,12.3,4363.9,4363.8,41.04798073]
[1757347412502,9.89201038,4363.9,4363.8,41.28816293]
[1757347412676,1.23,4364.7,4364.6,2.2911607]
[1757347412880,1.23,4364.7,4364.6,11.0205607]
[1757347413082,1.23,4364.7,4364.6,41.0205607]
[1757347414308,2.46,4364.7,4364.6,41.0205607]
[1757347415062,2.46,4364.7,4364.6,34.8724]
[1757347415264,2.46,4364.7,4364.6,8.615]
[1757347415478,3.69,4364.7,4364.6,8.615]
[1757347415680,4.482,4364.7,4364.6,8.615]
[1757347416315,7.2213082,4364.7,4364.6,8.615]
[1757347417019,8.4513082,4364.7,4364.6,8.615]
[1757347418313,9.6813082,4364.7,4364.6,8.615]
[1757347418514,7.3902,4364.7,4364.6,5.615]
[1757347419178,9.6813082,4364.7,4364.6,5.615]
[1757347419593,8.6202,4364.7,4364.6,5.615]
[1757347419793,8.172,4364.7,4364.6,5.615]
[1757347421317,9.402,4364.7,4364.6,5.615]
[1757347422388,11.6931082,4364.7,4364.6,5.615]
[1757347422593,12.9231082,4364.7,4364.6,5.615]
[1757347423915,14.1531082,4364.7,4364.6,5.615]
[1757347424143,15.79752016,4364.7,4364.6,5.615]
[1757347425622,17.02752016,4364.7,4364.6,5.615]
[1757347426684,14.73641196,4364.7,4364.6,5.615]
[1757347426995,13.531,4364.7,4364.6,5.615]
[1757347427195,14.323,4364.7,4364.6,5.615]
[1757347428288,15.553,4364.7,4364.6,5.615]
[1757347429788,16.783,4364.7,4364.6,5.615]
[1757347431224,18.013,4364.7,4364.6,5.615]
[1757347432646,19.243,4364.7,4364.6,5.615]
[1757347433848,20.473,4364.7,4364.6,5.615]
[1757347435217,21.703,4364.7,4364.6,5.615]
[1757347436655,22.933,4364.7,4364.6,5.615]
[1757347438040,24.163,4364.7,4364.6,5.615]
[1757347439468,28.16959974,4364.7,4364.6,5.615]
[1757347439756,28.16959974,4364.7,4364.6,1.758]
[1757347439956,28.16959974,4364.7,4364.6,5.615]
[1757347440574,25.87849154,4364.7,4364.6,5.615]
[1757347440771,27.10849154,4364.7,4364.6,5.615]
[1757347441154,29.39959974,4364.7,4364.6,5.615]
[1757347441324,27.10849154,4364.7,4364.6,5.615]
[1757347441524,29.39959974,4364.7,4364.6,5.615]
[1757347441957,27.10849154,4364.7,4364.6,5.615]
[1757347442167,30.62959974,4364.7,4364.6,5.615]
[1757347442864,28.33849154,4364.7,4364.6,5.615]
[1757347443370,27.061,4364.7,4364.6,5.615]
[1757347443663,29.083,4364.7,4364.6,5.615]
[1757347443863,28.291,4364.7,4364.6,5.615]
[1757347444053,29.083,4364.7,4364.6,5.615]
[1757347444723,30.313,4364.7,4364.6,5.615]
[1757347446382,31.543,4364.7,4364.6,5.615]
[1757347446878,30.751,4364.7,4364.6,10.9061607]
[1757347447574,31.981,4364.7,4364.6,10.9061607]
[1757347448349,31.981,4364.7,4364.6,40.9061607]
[1757347449084,33.211,4364.7,4364.6,40.9061607]
[1757347449581,33.211,4364.7,4364.6,41.23502842]
[1757347450090,33.211,4364.7,4364.6,40.9061607]
[1757347450250,34.441,4364.7,4364.6,40.9061607]
[1757347451763,35.671,4364.7,4364.6,40.9061607]
[1757347452364,0.001,4365.2,4364.7,5.2911082]
[1757347452565,0.001,4365.2,4364.9,3.0]
[1757347452908,0.001,4365.2,4365.1,5.40529826]
[1757347453076,0.001,4365.2,4365.1,44.75529826]
[1757347453277,1.231,4365.2,4365.1,44.75529826]
[1757347454666,2.461,4365.2,4365.1,44.75529826]
[1757347455974,0.001,4365.6,4365.5,2.29068835]
[1757347456299,0.001,4365.6,4365.5,41.34795607]
[1757347457090,0.001,4365.6,4365.5,41.01908835]
[1757347457304,1.231,4365.6,4365.5,37.16308835]
[1757347457487,1.231,4365.6,4365.5,37.04868835]
[1757347457690,1.231,4365.6,4365.5,10.90368835]
[1757347458696,2.461,4365.6,4365.5,10.90368835]
[1757347459910,2.461,4365.6,4365.5,40.90368835]
[1757347460112,3.691,4365.6,4365.5,40.90368835]
[1757347461496,4.921,4365.6,4365.5,40.90368835]
[1757347462903,6.151,4365.6,4365.5,40.90368835]
[1757347463494,6.07200739,4365.6,4365.5,40.90368835]
[1757347463695,1.13210547,4365.6,4365.5,41.23255607]
[1757347463876,32.02,4365.9,4365.6,35.29063588]
[1757347464225,32.02,4365.9,4365.6,35.51963588]
[1757347465104,32.02,4365.9,4365.6,35.29063588]
[1757347465475,1.231,4365.7,4365.6,35.29063588]
[1757347466007,32.02,4365.9,4365.7,35.51958341]
[1757347466227,32.02,4365.9,4365.7,39.37358341]
[1757347466378,9.29786272,4365.9,4365.8,5.29053094]
[1757347466584,9.24520098,4365.9,4365.8,35.61939866]
[1757347466793,9.24520098,4365.9,4365.8,35.51953094]
[1757347467394,9.24520098,4365.9,4365.8,35.63393094]
[1757347467579,9.24520098,4365.9,4365.8,35.40493094]
[1757347467784,9.24520098,4365.9,4365.8,39.25893094]
[1757347468525,10.47520098,4365.9,4365.8,39.25893094]
[1757347468908,10.47520098,4365.9,4365.8,9.25893094]
[1757347469095,10.47520098,4365.9,4365.8,6.14453094]
[1757347469302,10.47520098,4365.9,4365.8,9.14453094]
[1757347469708,11.70520098,4365.9,4365.8,9.14453094]
[1757347470533,11.81960098,4365.9,4365.8,9.14453094]
[1757347470823,11.81960098,4365.9,4365.8,6.854]
[1757347471024,13.04960098,4365.9,4365.8,9.14453094]
[1757347471231,13.04960098,4365.9,4365.8,6.854]
[1757347471810,13.04960098,4365.9,4365.8,9.14453094]
[1757347472011,13.04960098,4365.9,4365.8,6.854]
[1757347472212,13.04960098,4365.9,4365.8,9.14453094]
[1757347472421,14.27960098,4365.9,4365.8,6.854]
[1757347472624,14.27960098,4365.9,4365.8,9.14453094]
[1757347472925,14.27960098,4365.9,4365.8,6.854]
[1757347473831,16.93766108,4365.9,4365.8,6.854]
[1757347475317,18.16766108,4365.9,4365.8,6.854]
[1757347475497,18.16766108,4365.9,4365.8,9.14453094]
[1757347475701,16.73960098,4365.9,4365.8,9.14453094]
[1757347476110,16.73960098,4365.9,4365.8,6.854]
[1757347476739,17.96960098,4365.9,4365.8,6.854]
[1757347477507,18.76160098,4365.9,4365.8,6.854]
[1757347478035,19.99160098,4365.9,4365.8,6.854]
[1757347478223,22.21989362,4365.9,4365.8,6.854]
[1757347479815,23.45089362,4365.9,4365.8,6.854]
[1757347481330,24.68089362,4365.9,4365.8,6.854]
[1757347482541,26.9713721,4365.9,4365.8,3.854]
[1757347482711,3.08263588,4365.6,4365.5,1.758]
[1757347482912,5.35054385,4365.6,4365.5,5.611]
[1757347484116,6.58054385,4365.6,4365.5,5.611]
[1757347484639,6.58054385,4365.6,4365.5,1.758]
[1757347485041,7.07114741,4365.6,4365.5,5.611]
[1757347485219,6.58054385,4365.6,4365.5,5.611]
[1757347485419,7.81054385,4365.6,4365.5,5.611]
[1757347486940,9.04054385,4365.6,4365.5,5.611]
[1757347488237,10.27054385,4365.6,4365.5,5.611]
[1757347489642,11.50054385,4365.6,4365.5,5.611]
[1757347490942,3.08284578,4365.2,4365.1,0.002]
[1757347492226,4.31284578,4365.2,4365.1,3.856]
[1757347494049,5.54284578,4365.2,4365.1,3.856]
[1757347495548,6.77284578,4365.2,4365.1,3.856]
[1757347496848,8.00284578,4365.2,4365.1,3.856]
[1757347497016,9.24054399,4365.2,4365.1,3.856]
[1757347498250,10.47054399,4365.2,4365.1,3.856]
[1757347499552,11.70054399,4365.2,4365.1,3.856]
[1757347500214,8.61769821,4365.2,4365.1,3.856]
[1757347500436,9.67084578,4365.2,4365.1,3.856]
[1757347500855,10.90084578,4365.2,4365.1,3.856]
[1757347501032,11.69284578,4365.2,4365.1,3.856]
[1757347502319,12.92284578,4365.2,4365.1,3.856]
[1757347503855,14.15284578,4365.2,4365.1,3.856]
[1757347504058,15.79720481,4365.2,4365.1,3.856]
[1757347505535,17.02720481,4365.2,4365.1,3.856]
[1757347506951,18.25720481,4365.2,4365.1,3.856]
[1757347508453,19.48720481,4365.2,4365.1,3.856]
[1757347509693,14.76,4365.2,4365.1,3.856]
[1757347509844,15.99,4365.2,4365.1,3.856]
[1757347510364,16.782,4365.2,4365.1,3.856]
[1757347510679,15.99,4365.2,4365.1,3.856]
[1757347510973,16.782,4365.2,4365.1,3.856]
[1757347511492,18.012,4365.2,4365.1,3.856]
[1757347512297,22.10404578,4365.2,4365.1,3.856]
[1757347512791,20.30284578,4365.2,4365.1,3.856]
[1757347512960,21.53284578,4365.2,4365.1,3.856]
[1757347513161,19.242,4365.2,4365.1,3.856]
[1757347513795,21.53284578,4365.2,4365.1,3.856]
[1757347514587,22.76284578,4365.2,4365.1,3.856]
[1757347514895,25.03075375,4365.2,4365.1,0.002]
[1757347515062,25.03075375,4365.2,4365.1,3.855]
[1757347515871,26.26075375,4365.2,4365.1,3.855]
[1757347516572,26.26075375,4365.2,4365.1,0.002]
[1757347516776,26.75228986,4365.2,4365.1,3.855]
[1757347516978,26.26075375,4365.2,4365.1,3.855]
[1757347517296,27.98227704,4365.2,4365.1,3.855]
[1757347517500,27.98227704,4365.2,4364.8,0.025]
[1757347517501,0.792,4364.9,4364.8,0.025]
[1757347517711,6.08300323,4364.9,4364.8,0.025]
[1757347517871,6.08300323,4364.9,4364.8,3.878]
[1757347517872,6.9159068,4364.9,4364.8,3.878]
[1757347518079,7.52863149,4364.9,4364.8,3.878]
[1757347518274,6.78789397,4364.9,4364.8,3.878]
[1757347518574,9.05580194,4364.9,4364.8,3.878]
[1757347518785,10.28580194,4364.9,4364.8,3.878]
[1757347519164,6.08305571,4364.8,4364.7,0.002]
[1757347519462,6.78764332,4364.8,4364.7,0.002]
[1757347520198,8.75955659,4364.8,4364.7,0.002]
[1757347520399,6.0831082,4364.7,4364.6,1e-08]
[1757347520566,7.5291485,4364.7,4364.6,1e-08]
[1757347521421,8.01769581,4364.7,4364.6,1e-08]
[1757347521765,5.01769581,4364.7,4364.6,1e-08]
[1757347521966,4.80432836,4364.7,4364.6,1e-08]
[1757347522185,6.21963404,4364.7,4364.6,1e-08]
[1757347522586,7.44963404,4364.7,4364.6,1e-08]
[1757347523513,10.44963404,4364.7,4364.6,1e-08]
[1757347523715,10.66245196,4364.7,4364.6,1e-08]
[1757347524076,11.89245196,4364.7,4364.6,1e-08]
[1757347525287,6.47232836,4364.7,4364.6,1e-08]
[1757347525506,7.2111082,4364.7,4364.6,1e-08]
[1757347525716,8.0031082,4364.7,4364.6,1e-08]
[1757347527073,9.2331082,4364.7,4364.6,1e-08]
[1757347528619,10.4631082,4364.7,4364.6,1e-08]
[1757347528783,11.98452459,4364.7,4364.6,1e-08]
[1757347529214,15.47497143,4364.7,4364.6,1e-08]
[1757347529376,15.68780961,4364.7,4364.6,1e-08]
[1757347530010,20.77080961,4364.7,4364.6,1e-08]
[1757347531118,16.91780961,4364.7,4364.6,1e-08]
[1757347531288,22.00080961,4364.7,4364.6,1e-08]
[1757347531617,22.00069156,4364.7,4364.6,1e-08]
[1757347532880,23.23069156,4364.7,4364.6,1e-08]
[1757347533079,19.37769156,4364.7,4364.6,1e-08]
[1757347533508,23.23069156,4364.7,4364.6,1e-08]
[1757347534516,22.16958336,4364.7,4364.6,1e-08]
[1757347534702,24.46069156,4364.7,4364.6,1e-08]
[1757347535016,24.57858336,4364.7,4364.2,1e-08]
[1757347535220,6.19771819,4364.3,4364.2,1e-08]
[1757347535377,10.26319624,4364.3,4364.2,1e-08]
[1757347535587,14.39264308,4364.3,4364.2,1e-08]
[1757347535794,3.201,4364.0,4363.8,1e-08]
[1757347536115,9.11262822,4363.9,4363.8,1e-08]
[1757347536888,9.28239708,4363.9,4363.8,1e-08]
[1757347537091,8.59288156,4363.9,4363.8,1e-08]
[1757347537502,8.10339708,4363.9,4363.8,1e-08]